bitfinex/quotes_SOLUSD_20250204
["timestamp","ask_amount","ask_price","bid_price","bid_amount"]
[1738699280285,38.7756765,209.57,209.49,23.44035939]
[1738699280463,38.7756765,209.59,209.49,23.44035939]
[1738699280663,38.7756765,209.65,209.56,23.31154732]
[1738699280970,38.7756765,209.65,209.55,62.67263418]
[1738699281381,38.7756765,209.65,209.56,23.31154732]
[1738699281596,38.7756765,209.67,209.59,0.12549]
[1738699281803,0.89440754,209.75,209.66,38.7756765]
[1738699281804,38.7756765,209.75,209.66,38.7756765]
[1738699282086,38.7756765,209.7,209.6,38.7756765]
[1738699282384,4.7659,209.82,209.68,0.25098]
[1738699282586,4.7648,209.87,209.75,38.7756765]
[1738699282791,38.7756765,209.85,209.77,38.7756765]
[1738699283000,38.7756765,209.87,209.77,38.7756765]
[1738699283290,38.7756765,209.83,209.74,38.7756765]
[1738699283470,38.7756765,209.8,209.7,38.7756765]
[1738699283671,38.7756765,209.73,209.65,5.8185]
[1738699284077,38.7756765,209.69,209.59,61.84965614]
[1738699284283,38.7756765,209.75,209.65,38.7756765]
[1738699284478,38.7756765,209.81,209.73,38.7756765]
[1738699284681,13.17672857,209.76,209.75,15.59651884]
[1738699285066,13.17672857,209.76,209.73,38.7756765]
[1738699285266,38.7756765,209.75,209.63,38.7756765]
[1738699285469,38.7756765,209.72,209.61,67.19909386]
[1738699285692,38.7756765,209.72,209.61,62.42839386]
[1738699285892,38.7756765,209.7,209.61,62.42839386]
[1738699286111,1.0,209.73,209.54,23.60268742]
[1738699286301,38.7756765,209.62,209.52,38.7756765]
[1738699286601,38.7756765,209.62,209.46,25.1348]
[1738699286602,38.7756765,209.56,209.46,62.01066184]
[1738699286768,38.7756765,209.52,209.42,43.90459426]
[1738699286969,38.7756765,209.54,209.46,38.7756765]
[1738699287186,43.5490765,209.5,209.4,38.7756765]
[1738699287399,43.5490765,209.5,209.45,0.063]
[1738699287575,38.7756765,209.56,209.46,38.7756765]
[1738699287903,38.7756765,209.6,209.51,0.12549]
[1738699288100,38.7756765,209.64,209.56,38.7756765]
[1738699288283,43.5448765,209.68,209.58,38.7756765]
[1738699288485,20.0,209.65,209.46,0.35321915]
[1738699288692,4.7692,209.68,209.47,0.3541051]
[1738699288887,0.92439548,209.77,209.52,0.50196]
[1738699289116,1.0,209.74,209.51,20.35312332]
[1738699289279,17.58241555,209.73,209.53,0.35312332]
[1738699289475,4.768,209.73,209.54,0.50196]
[1738699289704,38.7756765,209.7,209.61,38.7756765]
[1738699290019,38.7756765,209.62,209.51,38.7756765]
[1738699290196,38.7756765,209.62,209.53,38.7756765]
[1738699290513,4.768,209.73,209.57,0.12549]
[1738699290676,0.03,209.77,209.61,0.12549]
[1738699290879,4.7973,209.77,209.63,0.12549]
[1738699291279,0.03,209.77,209.57,0.97940305]
[1738699291506,0.89393996,209.76,209.55,4.7721]
[1738699291715,0.89393996,209.76,209.6,38.7756765]
[1738699291716,38.7756765,209.7,209.6,38.7756765]
[1738699292097,38.7756765,209.62,209.51,38.7756765]
[1738699292410,0.89456313,209.74,209.47,0.97940305]
[1738699292610,0.03,209.77,209.54,20.50196]
[1738699292817,0.12549,209.75,209.54,20.50196]
[1738699292985,13.41184853,209.73,209.54,20.50196]
[1738699293181,16.6873,209.74,209.55,4.7721]
[1738699293500,16.6873,209.74,209.6,0.12549]
[1738699293706,38.7756765,209.71,209.61,38.7756765]
[1738699293907,0.03,209.77,209.7,0.37647]
[1738699294223,0.03,209.77,209.74,38.7756765]
[1738699294393,0.03,209.77,209.76,38.7756765]
[1738699294597,0.03,209.77,209.76,39.2776365]
[1738699294894,4.764,209.91,209.76,77.551353]
[1738699295104,38.7756765,209.95,209.85,38.7756765]
[1738699295305,4.7632,209.94,209.85,38.7756765]
[1738699295509,38.7756765,209.97,209.89,38.7756765]
[1738699295822,43.5382765,209.97,209.89,38.7756765]
[1738699295990,0.03,209.98,209.93,38.7756765]
[1738699296399,0.03,209.98,209.96,0.37647]
[1738699296608,0.03,209.98,209.97,39.1521465]
[1738699296813,0.03,209.98,209.97,39.2776365]
[1738699297015,0.03,209.98,209.95,38.7756765]
[1738699297187,0.03,209.98,209.88,38.7756765]
[1738699297188,38.7756765,209.97,209.88,38.7756765]
[1738699297390,43.5381765,209.97,209.88,38.7756765]
[1738699297584,0.03,209.98,209.97,0.37647]
[1738699297791,0.03,209.98,209.97,0.50196]
[1738699298211,0.03,209.98,209.88,4.7644]
[1738699298611,0.03,209.98,209.91,38.7756765]
[1738699298785,38.7756765,209.94,209.85,38.7756765]
[1738699299118,4.7925,209.98,209.74,5.9643]
[1738699299119,38.7756765,209.9,209.81,38.7756765]
[1738699299290,0.8933337,209.97,209.79,38.7756765]
[1738699299291,0.89348504,209.97,209.79,38.7756765]
[1738699299615,13.53733853,209.92,209.74,5.9643]
[1738699299814,13.53733853,209.92,209.7,4.7686]
[1738699299815,20.0,209.93,209.73,20.0]
[1738699299985,0.89343219,209.92,209.71,23.60253083]
[1738699300318,20.0,209.88,209.72,0.37647]
[1738699300488,20.0,209.84,209.68,23.25486215]
[1738699300688,38.7756765,209.8,209.71,38.7756765]
[1738699300885,38.7756765,209.86,209.78,38.7756765]
[1738699301191,38.7756765,209.86,209.67,4.7693]
[1738699301192,5.69913728,209.9,209.87,14.37147868]
[1738699301389,38.7756765,209.92,209.87,14.37147868]
[1738699301687,4.7924,209.98,209.89,38.7756765]
[1738699301893,0.03,209.98,209.95,38.7756765]
[1738699302325,0.03,209.98,209.97,38.7756765]
[1738699302525,0.03,209.98,209.95,38.7756765]
[1738699302821,0.03,209.98,209.97,38.7756765]
[1738699303025,0.03,209.98,209.89,38.7756765]
[1738699303026,43.5680765,209.98,209.89,38.7756765]
[1738699303226,38.7756765,209.96,209.87,38.7756765]
[1738699303390,43.5385765,209.96,209.87,38.7756765]
[1738699303719,43.5385765,209.96,209.85,38.7756765]
[1738699303926,43.5385765,209.96,209.87,38.7756765]
[1738699304218,38.7756765,209.94,209.83,38.7756765]
[1738699304423,38.7756765,209.92,209.83,38.7756765]
[1738699304631,16.6699,209.96,209.85,38.7756765]
[1738699304632,38.7756765,209.94,209.85,38.7756765]
[1738699304804,0.03,209.98,209.91,38.7756765]
[1738699305007,38.7756765,209.94,209.84,38.7756765]
[1738699305204,38.7756765,209.96,209.86,38.7756765]
[1738699306145,4.7627,209.97,209.82,38.7756765]
[1738699306146,38.7756765,209.92,209.82,38.7756765]
[1738699306702,38.7756765,209.88,209.78,38.7756765]
[1738699306909,38.7756765,209.88,209.79,0.12549]
[1738699307114,38.7756765,209.82,209.72,38.7756765]
[1738699307319,43.5416765,209.82,209.72,38.7756765]
[1738699307516,38.7756765,209.8,209.72,38.7756765]
[1738699307710,43.5416765,209.82,209.72,38.7756765]
[1738699307912,38.7756765,209.82,209.72,43.5437765]
[1738699308222,38.7756765,209.94,209.8,38.7756765]
[1738699308414,43.5385765,209.96,209.87,38.7756765]
[1738699308604,38.8056765,209.98,209.89,38.7756765]
[1738699308930,0.03,209.98,209.92,0.12549]
[1738699309096,0.03,209.98,209.91,38.7756765]
[1738699309295,0.03,209.98,209.92,4.7637]
[1738699309519,0.03,209.98,209.93,39.1521465]
[1738699309827,0.03,209.98,209.97,39.1521465]
[1738699310048,38.7756765,210.1,209.98,0.50196]
[1738699310340,38.7756765,210.06,209.98,0.12549]
[1738699310546,38.7756765,210.06,209.96,38.7756765]
[1738699310712,38.7756765,210.13,210.05,0.12549]
[1738699311044,38.7756765,210.17,210.07,38.9011665]
[1738699311341,38.7756765,210.17,210.09,38.7756765]
[1738699311549,38.7756765,210.17,210.09,43.5353765]
[1738699311848,0.03,210.2,210.13,38.9011665]
[1738699312046,0.03,210.2,210.13,38.7756765]
[1738699312214,0.03,210.2,210.09,16.6593]
[1738699312215,0.89189105,210.31,210.19,38.7756765]
[1738699312415,0.03,210.36,210.18,1.0]
[1738699312646,0.03,210.36,210.19,1.0]
[1738699312850,0.03,210.36,210.33,38.38783237]
[1738699313051,0.03,210.36,210.35,38.38783237]
[1738699313228,0.89108019,210.52,210.38,20.0]
[1738699313412,38.38783237,210.4,210.27,38.38783237]
[1738699313612,38.38783237,210.3,210.17,4.758]
[1738699313823,38.38783237,210.32,210.17,4.758]
[1738699314114,20.0,210.31,210.17,38.38783237]
[1738699314319,38.38783237,210.27,210.15,38.38783237]
[1738699314538,58.38783237,210.29,210.18,38.38783237]
[1738699314923,38.38783237,210.27,210.16,38.38783237]
[1738699315113,1.0,210.34,210.1,38.38783237]
[1738699315114,39.27990615,210.33,210.22,38.38783237]
[1738699315441,2.0,210.38,210.24,38.38783237]
[1738699315442,4.7546,210.32,210.24,38.38783237]
[1738699315647,4.7546,210.32,210.26,38.38783237]
[1738699315853,38.38783237,210.33,210.22,38.38783237]
[1738699316021,38.38783237,210.33,209.99,51.31643237]
[1738699316022,13.41184853,210.25,210.15,38.38783237]
[1738699316219,38.38783237,210.3,210.19,38.38783237]
[1738699316434,0.89209681,210.31,210.23,38.38783237]
[1738699316435,0.89189473,210.31,210.23,38.38783237]
[1738699316632,39.2797271,210.31,210.2,38.38783237]
[1738699316946,39.2797271,210.31,210.04,7.23620305]
[1738699316947,38.38783237,210.25,210.14,38.38783237]
[1738699317248,38.38783237,210.23,210.12,38.38783237]
[1738699317416,4.7569,210.22,210.14,38.38783237]
[1738699317753,38.38783237,210.19,210.08,38.38783237]
[1738699317953,39.28016945,210.19,210.08,38.22896613]
[1738699318260,39.28016945,210.19,210.05,38.38783237]
[1738699318261,38.38783237,210.15,210.05,38.38783237]
[1738699318549,4.7569,210.22,210.13,38.38783237]
[1738699318720,38.38783237,210.31,210.21,38.38783237]
[1738699318915,38.38783237,210.31,209.99,38.38783237]
[1738699318916,38.38783237,210.25,210.13,38.38783237]
[1738699319136,38.38783237,210.19,210.08,38.38783237]
[1738699319541,4.7578,210.18,210.08,38.38783237]
[1738699319742,39.28012503,210.17,210.06,38.38783237]
[1738699319914,4.7578,210.18,210.09,38.38783237]
[1738699320115,38.38783237,210.15,210.07,38.38783237]
[1738699320316,4.7562,210.25,210.13,38.38783237]
[1738699320547,4.7562,210.25,210.08,0.12549]
[1738699320857,13.38769887,210.28,210.21,38.38783237]
[1738699321021,38.38783237,210.24,210.14,38.38783237]
[1738699321226,38.38783237,210.24,210.05,38.38783237]
[1738699321227,38.38783237,210.15,210.05,38.38783237]
[1738699321431,38.38783237,210.13,210.03,38.38783237]
[1738699321633,38.38783237,210.06,209.95,38.38783237]
[1738699321857,38.38783237,210.01,209.9,38.38783237]
[1738699322021,0.8929166,210.06,209.9,38.38783237]
[1738699322022,38.38783237,209.99,209.9,38.38783237]
[1738699322223,0.8929166,210.06,209.88,38.38783237]
[1738699322224,38.38783237,209.97,209.88,38.38783237]
[1738699322526,38.38783237,209.97,209.86,38.38783237]
[1738699322730,38.38783237,209.97,209.82,0.063]
[1738699322731,38.38783237,209.93,209.82,38.45083237]
[1738699322929,38.38783237,209.89,209.82,0.063]
[1738699323135,38.38783237,209.85,209.82,0.063]
[1738699323330,38.38783237,209.83,209.82,0.063]
[1738699323538,38.38783237,209.87,209.82,0.063]
[1738699323841,4.7639,209.91,209.82,0.063]
[1738699323842,38.38783237,209.83,209.82,0.063]
[1738699324052,38.38783237,209.85,209.82,0.063]
[1738699324221,38.38783237,209.83,209.82,0.063]
[1738699324424,38.38783237,209.89,209.82,0.063]
[1738699324619,4.7639,209.91,209.83,38.38783237]
[1738699324862,4.7639,209.91,209.82,0.063]
[1738699324863,38.38783237,209.97,209.87,38.38783237]
[1738699325025,38.38783237,210.01,209.92,38.38783237]
[1738699325423,43.14783237,210.08,209.99,38.38783237]
[1738699325732,1.0,210.16,210.03,38.38783237]
[1738699325733,38.38783237,210.12,210.03,38.38783237]
[1738699325923,38.38783237,210.12,209.95,20.0]
[1738699325924,4.7585,210.15,210.08,38.38783237]
[1738699326124,35.54685157,210.16,210.14,38.38783237]
[1738699326345,2.96110106,210.07,209.99,38.38783237]
[1738699326520,2.96110106,210.07,210.06,38.38783237]
[1738699326725,5.92220213,210.14,210.06,38.38783237]
[1738699327061,5.92220213,210.14,210.06,0.12549]
[1738699327350,1.0,210.22,210.13,38.38783237]
[1738699327650,1.0,210.24,210.18,38.38783237]
[1738699328022,1.0,210.24,209.99,51.35019956]
[1738699328023,1.0,210.14,210.08,38.38783237]
[1738699328220,1.0,210.15,210.05,38.38783237]
[1738699328221,1.0,210.13,210.05,38.38783237]
[1738699328456,1.0,210.15,210.09,38.38783237]
[1738699328627,1.0,210.29,210.01,30.0]
[1738699328820,1.0,210.31,210.05,30.0]
[1738699329025,1.0,210.33,210.28,38.38783237]
[1738699329348,1.0,210.33,210.08,20.0]
[1738699329349,1.0,210.35,210.32,38.38783237]
[1738699329555,0.03,210.37,210.32,38.38783237]
[1738699329556,1.03,210.37,210.32,38.38783237]
[1738699329719,0.03,210.37,210.34,38.38783237]
[1738699330053,0.03,210.37,210.25,0.25098]
[1738699330054,1.03,210.37,210.32,38.38783237]
[1738699330262,1.0,210.36,210.3,38.38783237]
[1738699330435,1.0,210.35,210.34,38.38783237]
[1738699330625,1.0,210.3,210.24,38.38783237]
[1738699330825,1.0,210.24,210.22,19.022566]
[1738699331051,2.0,210.24,210.22,19.022566]
[1738699331235,1.0,210.24,210.17,38.38783237]
[1738699331565,1.0,210.14,210.1,38.38783237]
[1738699331731,1.0,210.12,210.08,38.38783237]
[1738699331933,1.0,210.12,210.06,38.38783237]
[1738699332235,1.0,210.07,210.02,38.38783237]
[1738699332434,1.0,210.06,210.02,38.38783237]
[1738699332758,1.0,209.97,209.94,38.38783237]
[1738699332960,1.0,209.95,209.9,38.38783237]
[1738699333161,1.0,209.97,209.92,38.38783237]
[1738699333330,1.0,210.02,209.94,38.38783237]
[1738699333531,5.7601,210.08,210.0,38.38783237]
[1738699333731,1.0,210.07,210.03,38.38783237]
[1738699333954,1.0,210.09,210.03,38.38783237]
[1738699334132,1.0,210.05,210.01,38.38783237]
[1738699334348,1.0,210.05,209.98,0.12549]
[1738699334349,2.0,210.07,209.99,38.38783237]
[1738699334550,1.0,210.05,210.0,38.38783237]
[1738699334729,38.38783237,210.09,209.98,38.38783237]
[1738699334730,1.0,210.04,209.98,38.38783237]
[1738699334930,1.0,210.07,210.02,38.38783237]
[1738699335127,1.0,210.01,209.98,38.38783237]
[1738699335362,1.0,210.02,209.94,38.38783237]
[1738699335566,1.0,209.98,209.92,38.38783237]
[1738699335867,1.0,210.05,209.96,38.38783237]
[1738699336038,1.0,210.01,210.0,38.38783237]
[1738699336359,1.0,210.04,210.0,38.38783237]
[1738699336557,1.0,210.04,209.91,20.0]
[1738699336558,2.0,209.98,209.93,38.38783237]
[1738699336746,1.0,209.95,209.89,38.38783237]
[1738699336952,2.0,209.9,209.85,38.38783237]
[1738699337157,1.0,209.88,209.82,38.45083237]
[1738699337461,1.0,209.85,209.82,0.063]
[1738699337663,25.31984853,209.95,209.84,38.38783237]
[1738699337664,1.0,209.92,209.84,38.38783237]
[1738699337844,1.0,210.06,209.93,0.12549]
[1738699338031,2.0,210.07,209.98,38.38783237]
[1738699338235,2.0,210.07,209.88,38.38783237]
[1738699338236,1.0,209.98,209.94,38.38783237]
[1738699338745,1.0,209.95,209.9,38.38783237]
[1738699338941,1.0,209.9,209.88,38.38783237]
[1738699339142,1.0,209.87,209.84,38.38783237]
[1738699339445,2.0,209.87,209.8,38.45083237]
[1738699339660,1.0,209.88,209.83,38.38783237]
[1738699339837,2.0,209.83,209.8,0.063]
[1738699340542,1.0,209.87,209.8,0.063]
[1738699340850,2.0,209.81,209.8,0.063]
[1738699341053,2.0,209.81,209.71,38.38783237]
[1738699341054,1.0,209.72,209.65,38.38783237]
[1738699341244,1.0,209.73,209.67,38.38783237]
[1738699341449,1.0,209.72,209.67,38.38783237]
[1738699341643,1.0,209.77,209.7,0.12549]
[1738699341842,1.0,209.71,209.69,38.38783237]
[1738699342167,2.0,209.65,209.58,38.38783237]
[1738699342458,1.0,209.69,209.64,38.38783237]
[1738699342660,1.0,209.73,209.68,38.38783237]
[1738699342829,1.0,209.69,209.68,38.38783237]
[1738699343036,1.0,209.71,209.68,38.38783237]
[1738699343251,1.0,209.73,209.68,38.38783237]
[1738699343472,11.915,209.82,209.7,38.38783237]
[1738699343473,1.0,209.74,209.7,38.38783237]
[1738699343761,1.0,209.76,209.72,38.38783237]
[1738699343966,1.0,209.67,209.64,38.38783237]
[1738699344144,1.0,209.7,209.66,38.38783237]
[1738699344460,1.0,209.79,209.69,0.37647]
[1738699344756,1.0,209.73,209.52,6.4022]
[1738699344967,1.0,209.71,209.66,38.38783237]
[1738699345138,1.0,209.68,209.62,38.38783237]
[1738699345338,1.0,209.68,209.52,6.4022]
[1738699345339,1.0,209.68,209.64,38.38783237]
[1738699345544,1.0,209.66,209.62,38.38783237]
[1738699345942,1.0,209.66,209.64,38.38783237]
[1738699346348,1.0,209.66,209.62,38.38783237]
[1738699346544,1.0,209.62,209.58,38.38783237]
[1738699346853,1.0,209.66,209.61,4.8336]
[1738699347051,1.0,209.63,209.61,0.063]
[1738699347441,1.0,209.71,209.62,38.38783237]
[1738699347641,1.0,209.7,209.67,38.38783237]
[1738699347945,1.0,209.74,209.69,38.38783237]
[1738699348146,1.0,209.79,209.73,38.38783237]
[1738699348466,1.0,209.77,209.69,20.0]
[1738699348665,2.0,209.76,209.71,38.38783237]
[1738699348873,1.0,209.78,209.75,38.38783237]
[1738699349084,1.0,209.74,209.73,38.38783237]
[1738699349374,1.0,209.74,209.66,38.38783237]
[1738699349375,1.0,209.74,209.71,38.38783237]
[1738699349571,1.0,209.84,209.77,0.12549]
[1738699349780,1.0,209.85,209.83,38.38783237]
[1738699349989,1.0,209.87,209.83,38.38783237]
[1738699350283,1.0,209.94,209.86,0.12549]
[1738699350480,1.0,210.09,209.86,0.12549]
[1738699350481,1.0,209.98,209.95,20.0]
[1738699350691,1.0,210.06,209.97,38.38783237]
[1738699350983,1.0,210.08,210.05,38.38783237]
[1738699351276,1.0,210.15,210.07,58.38783237]
[1738699351450,1.0,210.15,210.12,38.38783237]
[1738699351652,14.41457,210.17,210.12,38.38783237]
[1738699351868,1.03,210.14,210.12,38.38783237]
[1738699352192,0.03,210.14,210.13,0.12549]
[1738699352356,0.03,210.14,210.13,0.37647]
[1738699352857,1.0,210.27,210.16,0.37647]
[1738699353189,1.0,210.32,210.18,38.38783237]
[1738699353190,1.0,210.19,210.18,38.38783237]
[1738699353358,1.0,210.16,210.13,38.38783237]
[1738699353556,1.0,210.16,210.11,38.38783237]
[1738699353870,1.0,210.18,210.11,38.38783237]
[1738699354077,1.0,210.18,210.13,38.38783237]
[1738699354281,1.0,210.18,210.08,0.12549]
[1738699354282,1.0,210.16,210.15,38.38783237]
[1738699354459,1.0,210.24,210.15,38.38783237]
[1738699354652,2.0,210.25,210.2,38.38783237]
[1738699354880,38.38783237,210.3,210.14,0.25098]
[1738699354881,1.0,210.3,210.24,38.38783237]
[1738699355091,1.03,210.36,210.29,38.38783237]
[1738699355294,1.03,210.36,210.25,38.38783237]
[1738699355295,1.0,210.28,210.25,38.38783237]
[1738699355481,1.0,210.23,210.21,38.38783237]
[1738699355675,2.0,210.22,210.19,38.38783237]
[1738699355877,1.0,210.14,210.03,12.9724]
[1738699356083,1.0,210.14,210.11,38.38783237]
[1738699356767,2.0,210.12,210.11,38.38783237]
[1738699356970,1.0,210.12,210.09,38.38783237]
[1738699357265,1.0,210.09,210.03,38.38783237]
[1738699357475,1.0,210.09,210.07,38.38783237]
[1738699357690,1.0,210.14,210.07,38.38783237]
[1738699357888,1.0,210.17,210.12,38.38783237]
[1738699358091,1.0,210.21,210.15,38.38783237]
[1738699358092,1.0,210.2,210.15,38.38783237]
[1738699358270,1.0,210.17,210.16,38.38783237]
[1738699358607,1.0,210.19,210.16,38.38783237]
[1738699358764,2.0,210.09,210.04,38.38783237]
[1738699358970,2.0,210.09,210.07,0.063]
[1738699359668,51.7996809,210.08,210.07,0.063]
[1738699359876,56.5596809,210.08,210.07,0.063]
[1738699360276,2.0,210.09,210.07,0.063]
[1738699361204,45.14783237,210.09,210.07,0.063]
[1738699362081,0.89271964,210.08,210.07,0.063]
[1738699362391,1.0,209.91,209.88,38.38783237]
[1738699362592,2.0,209.89,209.84,38.38783237]
[1738699362773,1.0,209.86,209.82,38.38783237]
[1738699362972,1.0,209.86,209.78,38.38783237]
[1738699363395,2.0,209.78,209.77,14.56309805]
[1738699363589,40.38783237,209.78,209.77,14.56309805]
[1738699363982,97.07980327,209.78,209.77,9.805e-05]
[1738699364168,1.0,209.67,209.64,9.805e-05]
[1738699364372,2.0,209.65,209.64,9.805e-05]
[1738699364580,1.0,209.66,209.64,9.805e-05]
[1738699364896,1.0,209.68,209.64,43.15793042]
[1738699365070,1.0,209.72,209.67,38.38783237]
[1738699365276,1.0,209.78,209.71,38.38783237]
[1738699365478,1.0,209.78,209.77,38.38783237]
[1738699365675,2.0,209.85,209.77,76.77566474]
[1738699365877,1.0,209.93,209.84,38.38783237]
[1738699366106,1.0,209.91,209.89,38.38783237]
[1738699366269,1.0,209.94,209.89,38.38783237]
[1738699366479,1.0,209.93,209.92,38.38783237]
[1738699366698,1.0,209.91,209.9,38.38783237]
[1738699367007,1.0,209.97,209.9,38.38783237]
[1738699367179,1.0,210.0,209.96,38.38783237]
[1738699367384,1.0,210.04,209.99,38.38783237]
[1738699367593,2.0,210.09,210.03,38.38783237]
[1738699367794,2.0,210.09,209.99,38.38783237]
[1738699367795,2.0,210.09,210.07,38.38783237]
[1738699368075,1.0,210.03,210.02,38.38783237]
[1738699368279,1.0,210.03,209.97,4.7624]
[1738699368280,1.0,210.0,209.98,38.38783237]
[1738699368506,4.7599,210.09,209.98,38.38783237]
[1738699368507,1.0,210.03,209.98,38.38783237]
[1738699368801,1.0,210.0,209.98,38.38783237]
[1738699369008,2.0,209.95,209.91,38.38783237]
[1738699369503,1.0,209.97,209.93,38.38783237]
[1738699369709,1.0,210.02,209.96,38.38783237]
[1738699369881,1.0,209.99,209.98,38.38783237]
[1738699370212,38.38783237,210.07,209.94,38.38783237]
[1738699370213,1.0,209.95,209.94,38.38783237]
[1738699370501,1.0,209.91,209.88,38.38783237]
[1738699370702,1.0,209.93,209.9,38.38783237]
[1738699370904,1.0,209.94,209.92,38.38783237]
[1738699371109,1.0,209.96,209.92,38.38783237]
[1738699371311,1.0,209.96,209.95,38.38783237]
[1738699371509,1.0,210.02,209.95,38.38783237]
[1738699371803,1.0,210.02,210.0,38.38783237]
[1738699372014,1.0,210.06,210.0,38.38783237]
[1738699372302,1.0,210.09,210.05,38.38783237]
[1738699372605,38.38783237,210.17,210.02,38.38783237]
[1738699372606,1.0,210.03,210.02,38.38783237]
[1738699372899,2.0,209.98,209.95,38.38783237]
[1738699373110,2.0,209.96,209.93,38.38783237]
[1738699373314,2.0,209.92,209.89,38.38783237]
[1738699373618,2.0,209.92,209.87,38.38783237]
[1738699373816,1.0,209.86,209.85,38.38783237]
[1738699374002,2.0,209.86,209.82,4.7659]
[1738699374173,2.0,209.94,209.85,38.38783237]
[1738699374377,1.0,209.84,209.83,38.38783237]
[1738699374578,1.0,209.82,209.79,38.38783237]
[1738699374872,1.0,209.8,209.79,38.38783237]
[1738699375078,1.0,209.8,209.77,38.45083237]
[1738699375297,1.0,209.78,209.77,38.45083237]
[1738699375508,1.0,209.78,209.77,0.063]
[1738699375683,2.0,209.78,209.77,0.063]
[1738699375884,15.41184853,209.78,209.77,0.063]
[1738699376084,20.17864853,209.78,209.77,0.063]
[1738699376378,1.0,209.68,209.65,38.38783237]
[1738699376587,1.0,209.75,209.68,0.12549]
[1738699376900,1.0,209.77,209.74,38.38783237]
[1738699377099,1.0,209.73,209.7,38.38783237]
[1738699377276,1.0,209.74,209.72,38.38783237]
[1738699377711,1.0,209.77,209.72,38.38783237]
[1738699378010,1.0,209.73,209.72,38.38783237]
[1738699378310,2.0,209.73,209.72,38.38783237]
[1738699378507,1.0,209.73,209.72,38.38783237]
[1738699378685,1.0,209.74,209.72,38.38783237]
[1738699379005,1.0,209.73,209.72,38.38783237]
[1738699379314,1.0,209.73,209.67,4.7693]
[1738699379315,2.0,209.71,209.7,38.38783237]
[1738699379511,2.0,209.86,209.7,38.38783237]
[1738699379512,1.0,209.79,209.74,0.12549]
[1738699379807,1.0,209.85,209.81,20.0]
[1738699380013,2.0,209.85,209.84,38.38783237]
[1738699380176,1.0,209.83,209.8,38.38783237]
[1738699380379,1.0,209.86,209.82,38.38783237]
[1738699380588,1.0,209.89,209.85,38.38783237]
[1738699380793,1.0,209.91,209.88,38.38783237]
[1738699380989,2.0,209.81,209.78,38.38783237]
[1738699381237,2.0,209.83,209.8,38.38783237]
[1738699381506,1.0,209.84,209.82,38.38783237]
[1738699381980,1.0,209.93,209.86,4.765]
[1738699382185,1.0,209.98,209.92,38.38783237]
[1738699382400,1.0,209.98,209.97,38.38783237]
[1738699383082,1.0,209.94,209.93,38.38783237]
[1738699383282,1.0,209.88,209.85,38.38783237]
[1738699383483,1.0,209.82,209.81,38.38783237]
[1738699383723,1.0,209.78,209.77,38.38783237]
[1738699384013,1.0,209.79,209.69,38.38783237]
[1738699384014,1.0,209.73,209.69,38.38783237]
[1738699384212,1.0,209.7,209.69,38.38783237]
[1738699384414,1.0,209.71,209.56,0.063]
[1738699384415,1.0,209.66,209.65,38.38783237]
[1738699384582,4.7681,209.73,209.63,4.7702]
[1738699384583,2.0,209.64,209.63,38.38783237]
[1738699384783,2.0,209.62,209.59,38.38783237]
[1738699385030,2.0,209.62,209.56,0.063]
[1738699385213,15.41184853,209.62,209.56,0.063]
[1738699385411,2.0,209.62,209.56,38.45083237]
[1738699385738,2.0,209.62,209.56,0.063]
[1738699385739,15.41184853,209.62,209.56,0.063]
[1738699385899,2.0,209.62,209.56,0.063]
[1738699386103,15.41184853,209.57,209.56,0.063]
[1738699386332,2.0,209.52,209.45,0.063]
[1738699386534,53.7996809,209.52,209.45,0.063]
[1738699386733,2.0,209.52,209.49,38.38783237]
[1738699387038,1.0,209.62,209.45,0.063]
[1738699387039,1.0,209.56,209.51,38.45083237]
[1738699387234,1.0,209.56,209.55,38.38783237]
[1738699387403,1.0,209.52,209.51,0.063]